[Event "*** Titled Tuesday Blitz"]
[Site "Chess.com"]
[Date "2020.04.28"]
[Round "2"]
[White "Megagigahiper3345"]
[Black "kuli4ik"]
[Result "0-1"]
[WhiteElo "2457"]
[BlackElo "2694"]
[TimeControl "180+1"]
[EndTime "10:20:02 PDT"]
[Termination "kuli4ik won by resignation"]

1. d4 {[%clk 0:03:00.9]} 1... d5 {[%clk 0:02:57.6]} 2. c4 {[%clk 0:03:01.2]}
2... c6 {[%clk 0:02:57.6]} 3. Nc3 {[%clk 0:03:00.9]} 3... dxc4 {[%clk
0:02:57.5]} 4. e4 {[%clk 0:03:00.3]} 4... b5 {[%clk 0:02:57.2]} 5. a4 {[%clk
0:03:00.9]} 5... b4 {[%clk 0:02:57.5]} 6. Nce2 {[%clk 0:03:01.6]} 6... Nf6
{[%clk 0:02:48.6]} 7. Ng3 {[%clk 0:03:01.6]} 7... Ba6 {[%clk 0:02:47.5]} 8. Nf3
{[%clk 0:02:59.6]} 8... e6 {[%clk 0:02:47.7]} 9. Bg5 {[%clk 0:02:59]} 9... Be7
{[%clk 0:02:47.5]} 10. Rc1 {[%clk 0:02:56.3]} 10... c3 {[%clk 0:02:44.7]} 11.
bxc3 {[%clk 0:02:51.5]} 11... bxc3 {[%clk 0:02:45.6]} 12. Bxa6 {[%clk
0:02:50.1]} 12... Nxa6 {[%clk 0:02:45.2]} 13. O-O {[%clk 0:02:50.7]} 13... O-O
{[%clk 0:02:45]} 14. Rxc3 {[%clk 0:02:45.4]} 14... c5 {[%clk 0:02:45.4]} 15.
dxc5 {[%clk 0:02:41.6]} 15... Nxc5 {[%clk 0:02:24.3]} 16. Bxf6 {[%clk
0:02:25.3]} 16... Qxd1 {[%clk 0:02:23.3]} 17. Rxd1 {[%clk 0:02:13.5]} 17... gxf6
{[%clk 0:02:23.2]} 18. Rc4 {[%clk 0:02:08]} 18... Rfd8 {[%clk 0:02:22.4]} 19.
Rdc1 {[%clk 0:02:02.1]} 19... Nd7 {[%clk 0:02:21.7]} 20. a5 {[%clk 0:01:58.1]}
20... Nf8 {[%clk 0:02:15.3]} 21. Rc7 {[%clk 0:01:46.5]} 21... Bd6 {[%clk
0:02:13.6]} 22. Rb7 {[%clk 0:01:45.2]} 22... Bf4 {[%clk 0:02:03.4]} 23. Rcb1
{[%clk 0:01:35.8]} 23... Bxg3 {[%clk 0:01:57.7]} 24. hxg3 {[%clk 0:01:31.1]}
24... Rd7 {[%clk 0:01:49.4]} 25. Rb8 {[%clk 0:01:22.8]} 25... Rxb8 {[%clk
0:01:45.2]} 26. Rxb8 {[%clk 0:01:23.7]} 26... Kg7 {[%clk 0:01:45.6]} 27. e5
{[%clk 0:01:20.3]} 27... f5 {[%clk 0:01:34.4]} 28. Kf1 {[%clk 0:00:57.2]} 28...
Rd1+ {[%clk 0:01:32.3]} 29. Ke2 {[%clk 0:00:57.5]} 29... Ra1 {[%clk 0:01:33.2]}
30. Rb5 {[%clk 0:00:57.4]} 30... Ng6 {[%clk 0:01:28]} 31. Nd4 {[%clk 0:00:50.7]}
31... a6 {[%clk 0:01:22.7]} 32. Rc5 {[%clk 0:00:49.5]} 32... Ne7 {[%clk
0:01:22.1]} 33. Rc7 {[%clk 0:00:41.6]} 33... Ra2+ {[%clk 0:01:18.3]} 34. Ke1
{[%clk 0:00:32.4]} 34... Kf8 {[%clk 0:01:18.1]} 35. Nc6 {[%clk 0:00:22.6]} 35...
Nxc6 {[%clk 0:01:07.9]} 36. Rxc6 {[%clk 0:00:23.5]} 36... Rxa5 {[%clk
0:01:08.5]} 37. f4 {[%clk 0:00:24.1]} 37... Ra2 {[%clk 0:01:08.3]} 38. Kf1
{[%clk 0:00:23.9]} 38... a5 {[%clk 0:01:05.6]} 39. Kg1 {[%clk 0:00:23.3]} 39...
a4 {[%clk 0:01:05.8]} 40. Rc8+ {[%clk 0:00:21.3]} 40... Kg7 {[%clk 0:01:05.4]}
41. Kh2 {[%clk 0:00:20.5]} 41... Rb2 {[%clk 0:01:03.3]} 42. Ra8 {[%clk
0:00:19.7]} 42... Rb4 {[%clk 0:01:03.3]} 43. Kh3 {[%clk 0:00:19.9]} 43... h6
{[%clk 0:01:01.8]} 44. Ra7 {[%clk 0:00:20.3]} 44... Kg6 {[%clk 0:01:01.6]} 45.
Kh2 {[%clk 0:00:20.5]} 45... h5 {[%clk 0:01:01.6]} 46. Kh3 {[%clk 0:00:20.2]}
46... Rc4 {[%clk 0:01:00.9]} 47. Kh2 {[%clk 0:00:20.5]} 47... h4 {[%clk
0:01:00.6]} 48. Kh3 {[%clk 0:00:19.4]} 48... hxg3 {[%clk 0:00:59.2]} 49. Kxg3
{[%clk 0:00:19.4]} 49... Rc3+ {[%clk 0:00:58.4]} 50. Kh4 {[%clk 0:00:19.9]}
50... a3 {[%clk 0:00:59.3]} 51. g4 {[%clk 0:00:18.7]} 51... Rf3 {[%clk
0:00:52.1]} 52. gxf5+ {[%clk 0:00:18.8]} 52... Kxf5 {[%clk 0:00:42.8]} 53. Rxf7+
{[%clk 0:00:19.1]} 53... Ke4 {[%clk 0:00:43]} 54. Kg5 {[%clk 0:00:14.2]} 54...
a2 {[%clk 0:00:24.3]} 55. Ra7 {[%clk 0:00:14.2]} 55... Rxf4 {[%clk 0:00:21.5]}
56. Rxa2 {[%clk 0:00:09.9]} 56... Rf5+ {[%clk 0:00:21.8]} 57. Kg4 {[%clk
0:00:10.6]} 57... Rxe5 {[%clk 0:00:17]} 58. Re2+ {[%clk 0:00:11]} 58... Kd4
{[%clk 0:00:16.1]} 59. Rd2+ {[%clk 0:00:11.5]} 59... Ke3 {[%clk 0:00:15.8]} 60.
Rd1 {[%clk 0:00:11.1]} 60... Ke2 {[%clk 0:00:13.8]} 61. Rd6 {[%clk 0:00:10.2]}
61... Ke3 {[%clk 0:00:13.3]} 62. Rd1 {[%clk 0:00:09.7]} 62... Re4+ {[%clk
0:00:13.7]} 63. Kg3 {[%clk 0:00:10]} 63... e5 {[%clk 0:00:13.1]} 64. Re1+ {[%clk
0:00:10.3]} 64... Kd3 {[%clk 0:00:12.9]} 65. Rd1+ {[%clk 0:00:08]} 65... Ke2
{[%clk 0:00:13.3]} 66. Rd5 {[%clk 0:00:08]} 66... Ke3 {[%clk 0:00:12.4]} 67. Kg2
{[%clk 0:00:07.7]} 67... Kf4 {[%clk 0:00:11.4]} 68. Kf2 {[%clk 0:00:07.6]} 68...
Ra4 {[%clk 0:00:11]} 69. Rd2 {[%clk 0:00:06.8]} 69... Ra3 {[%clk 0:00:10.9]} 70.
Rb2 {[%clk 0:00:06.7]} 70... Rh3 {[%clk 0:00:10.9]} 71. Rb8 {[%clk 0:00:06]}
71... Rh2+ {[%clk 0:00:10.8]} 72. Kg1 {[%clk 0:00:06.3]} 72... Ra2 {[%clk
0:00:11.7]} 73. Rf8+ {[%clk 0:00:05.6]} 73... Ke3 {[%clk 0:00:11.6]} 74. Kf1
{[%clk 0:00:04.8]} 74... Ra1+ {[%clk 0:00:11.6]} 75. Kg2 {[%clk 0:00:05.3]}
75... e4 {[%clk 0:00:12.5]} 76. Rd8 {[%clk 0:00:04.9]} 76... Ke2 {[%clk
0:00:12.5]} 77. Rd7 {[%clk 0:00:05.2]} 77... e3 {[%clk 0:00:13.4]} 78. Rd6
{[%clk 0:00:05.5]} 78... Ra2 {[%clk 0:00:12.5]} 79. Rd8 {[%clk 0:00:05.5]} 79...
Rd2 {[%clk 0:00:12.2]} 80. Re8 {[%clk 0:00:04.1]} 80... Kd1+ {[%clk 0:00:10.8]}
81. Kf1 {[%clk 0:00:04.5]} 81... e2+ {[%clk 0:00:08.6]} 82. Kf2 {[%clk
0:00:03.6]} 82... e1=Q+ {[%clk 0:00:09]} 0-1

[Event "*** Titled Tuesday Blitz"]
[Site "Chess.com"]
[Date "2020.04.28"]
[Round "2"]
[White "ShahMatKanal"]
[Black "IAgrest"]
[Result "0-1"]
[WhiteElo "2456"]
[BlackElo "2276"]
[TimeControl "180+1"]
[EndTime "10:20:03 PDT"]
[Termination "IAgrest won by resignation"]

1. e4 {[%clk 0:03:00.9]} 1... e5 {[%clk 0:02:59.5]} 2. f4 {[%clk 0:03:00]} 2...
exf4 {[%clk 0:02:58.4]} 3. Nf3 {[%clk 0:02:59.9]} 3... g5 {[%clk 0:02:58.2]} 4.
Bc4 {[%clk 0:02:59.5]} 4... Nc6 {[%clk 0:02:56.4]} 5. O-O {[%clk 0:02:59.1]}
5... Bg7 {[%clk 0:02:54.4]} 6. d4 {[%clk 0:02:47.4]} 6... h6 {[%clk 0:02:45]} 7.
e5 {[%clk 0:02:42.1]} 7... d5 {[%clk 0:02:34.5]} 8. exd6 {[%clk 0:02:35.6]} 8...
Qxd6 {[%clk 0:02:34.1]} 9. Re1+ {[%clk 0:02:35.3]} 9... Nge7 {[%clk 0:02:33.5]}
10. d5 {[%clk 0:02:18.8]} 10... Ne5 {[%clk 0:02:18.8]} 11. Nxe5 {[%clk
0:02:10.4]} 11... Bxe5 {[%clk 0:02:19.7]} 12. Bb5+ {[%clk 0:02:04.9]} 12... Kf8
{[%clk 0:02:07.5]} 13. c4 {[%clk 0:01:24.6]} 13... Bf5 {[%clk 0:01:52.7]} 14.
Nc3 {[%clk 0:01:21.3]} 14... Rd8 {[%clk 0:01:30]} 15. Qe2 {[%clk 0:01:12.2]}
15... Bf6 {[%clk 0:01:24.6]} 16. Ne4 {[%clk 0:01:08.3]} 16... Bxe4 {[%clk
0:01:13.2]} 17. Qxe4 {[%clk 0:01:08.2]} 17... c6 {[%clk 0:01:10]} 18. Ba4 {[%clk
0:00:58.5]} 18... cxd5 {[%clk 0:01:05.3]} 19. cxd5 {[%clk 0:00:58.9]} 19... Qxd5
{[%clk 0:01:02.5]} 20. Qc2 {[%clk 0:00:51.3]} 20... Rc8 {[%clk 0:00:47.7]} 21.
Qb3 {[%clk 0:00:28.9]} 21... Qxb3 {[%clk 0:00:24.4]} 22. Bxb3 {[%clk 0:00:29.7]}
22... Rd8 {[%clk 0:00:23.8]} 23. Rb1 {[%clk 0:00:29.1]} 23... Kg7 {[%clk
0:00:20.4]} 24. Bd1 {[%clk 0:00:27.8]} 24... Rhe8 {[%clk 0:00:19.5]} 25. b3
{[%clk 0:00:26.4]} 25... Nf5 {[%clk 0:00:17.8]} 26. Rf1 {[%clk 0:00:25.3]} 26...
Rd7 {[%clk 0:00:11.9]} 27. Bf3 {[%clk 0:00:23.6]} 27... Red8 {[%clk 0:00:11.3]}
28. Ba3 {[%clk 0:00:23.1]} 28... Ne3 {[%clk 0:00:10.9]} 29. Rfe1 {[%clk
0:00:23.1]} 29... Rd2 {[%clk 0:00:10.6]} 30. Bc5 {[%clk 0:00:21.3]} 30... Bd4
{[%clk 0:00:09.5]} 31. Bxd4+ {[%clk 0:00:20.6]} 31... R8xd4 {[%clk 0:00:10.4]}
32. a4 {[%clk 0:00:19.9]} 32... Ra2 {[%clk 0:00:10]} 33. Ra1 {[%clk 0:00:16.9]}
33... Rdd2 {[%clk 0:00:09.7]} 34. Rxa2 {[%clk 0:00:17]} 34... Rxa2 {[%clk
0:00:10.6]} 35. Bxb7 {[%clk 0:00:17.5]} 35... Rb2 {[%clk 0:00:10.7]} 36. g3
{[%clk 0:00:16.7]} 36... Rxb3 {[%clk 0:00:10.1]} 37. Be4 {[%clk 0:00:16.6]}
37... Rb4 {[%clk 0:00:09.7]} 38. Bc6 {[%clk 0:00:14.8]} 38... Rc4 {[%clk
0:00:09.6]} 39. Bb5 {[%clk 0:00:14.7]} 39... Rb4 {[%clk 0:00:09.4]} 40. gxf4
{[%clk 0:00:14.8]} 40... gxf4 {[%clk 0:00:09.8]} 41. Kf2 {[%clk 0:00:15.3]}
41... Kf6 {[%clk 0:00:09.8]} 42. Kf3 {[%clk 0:00:15.5]} 42... Ke5 {[%clk
0:00:09.7]} 43. Rc1 {[%clk 0:00:15.4]} 43... Rd4 {[%clk 0:00:08.6]} 44. Rc5+
{[%clk 0:00:15.3]} 44... Kf6 {[%clk 0:00:07.7]} 45. Rc6+ {[%clk 0:00:15.3]}
45... Kg5 {[%clk 0:00:07]} 46. Rc5+ {[%clk 0:00:15.3]} 46... f5 {[%clk
0:00:06.5]} 47. Rc7 {[%clk 0:00:14.8]} 47... Rd1 {[%clk 0:00:05.6]} 48. Rg7+
{[%clk 0:00:14.6]} 48... Kf6 {[%clk 0:00:05.7]} 49. Rxa7 {[%clk 0:00:14.4]}
49... Rh1 {[%clk 0:00:05.3]} 50. Kxf4 {[%clk 0:00:14]} 50... Nd5+ {[%clk
0:00:05]} 51. Kg3 {[%clk 0:00:14.4]} 51... Rg1+ {[%clk 0:00:04.7]} 52. Kf2
{[%clk 0:00:14.7]} 52... Rh1 {[%clk 0:00:04.2]} 53. Bc6 {[%clk 0:00:12.1]} 53...
Rxh2+ {[%clk 0:00:02.8]} 54. Kg1 {[%clk 0:00:11.8]} 54... Rd2 {[%clk 0:00:02.8]}
55. Rd7 {[%clk 0:00:07]} 55... Ke6 {[%clk 0:00:01.9]} 56. Rd8 {[%clk 0:00:05.3]}
56... Rd1+ {[%clk 0:00:01.1]} 57. Kh2 {[%clk 0:00:05.6]} 57... Rd2+ {[%clk
0:00:01.6]} 58. Kg1 {[%clk 0:00:05.8]} 58... Rd1+ {[%clk 0:00:02]} 59. Kh2
{[%clk 0:00:06.3]} 59... Rd2+ {[%clk 0:00:02.9]} 60. Kh3 {[%clk 0:00:06.4]}
60... Rd3+ {[%clk 0:00:03.2]} 61. Kh4 {[%clk 0:00:06.5]} 61... Rd4+ {[%clk
0:00:03.3]} 62. Kh5 {[%clk 0:00:05.5]} 62... Nf6+ {[%clk 0:00:03.5]} 63. Kxh6
{[%clk 0:00:05.3]} 63... Rxd8 {[%clk 0:00:04.4]} 64. Kg7 {[%clk 0:00:04.9]}
64... Nd5 {[%clk 0:00:04.5]} 65. Bb5 {[%clk 0:00:04.8]} 65... Nb6 {[%clk
0:00:04.5]} 66. Kg6 {[%clk 0:00:04.7]} 66... Na8 {[%clk 0:00:04.8]} 67. Kg5
{[%clk 0:00:05.1]} 67... Ke5 {[%clk 0:00:05.2]} 68. a5 {[%clk 0:00:04.8]} 68...
Rg8+ {[%clk 0:00:04.9]} 69. Kh4 {[%clk 0:00:04.7]} 69... f4 {[%clk 0:00:05.2]}
70. a6 {[%clk 0:00:04.9]} 70... Ke4 {[%clk 0:00:03.4]} 71. Bc4 {[%clk
0:00:04.8]} 71... Rh8+ {[%clk 0:00:02.9]} 72. Kg4 {[%clk 0:00:05.2]} 72... Rh7
{[%clk 0:00:03.2]} 73. a7 {[%clk 0:00:03.6]} 73... Rxa7 {[%clk 0:00:02.8]} 74.
Be2 {[%clk 0:00:04.5]} 74... Rg7+ {[%clk 0:00:02.5]} 75. Kh3 {[%clk 0:00:04.8]}
75... f3 {[%clk 0:00:03]} 76. Bb5 {[%clk 0:00:04.6]} 76... Ke3 {[%clk
0:00:02.7]} 77. Kh4 {[%clk 0:00:04.9]} 77... f2 {[%clk 0:00:02.5]} 78. Kh5
{[%clk 0:00:05.8]} 78... Rg1 {[%clk 0:00:02.4]} 79. Kh6 {[%clk 0:00:06.7]} 79...
f1=Q {[%clk 0:00:02.2]} 80. Bxf1 {[%clk 0:00:07.6]} 80... Rxf1 {[%clk
0:00:02.8]} 81. Kg5 {[%clk 0:00:08.5]} 81... Rf2 {[%clk 0:00:02.6]} 82. Kg4
{[%clk 0:00:09.4]} 82... Nb6 {[%clk 0:00:03.2]} 83. Kg3 {[%clk 0:00:10.3]} 83...
Nc4 {[%clk 0:00:03.8]} 84. Kg4 {[%clk 0:00:11.2]} 84... Ne5+ {[%clk 0:00:04.3]}
0-1

[Event "*** Titled Tuesday Blitz"]
[Site "Chess.com"]
[Date "2020.04.28"]
[Round "2"]
[White "r31415"]
[Black "temiksmozg"]
[Result "1-0"]
[WhiteElo "2346"]
[BlackElo "2632"]
[TimeControl "180+1"]
[EndTime "10:20:13 PDT"]
[Termination "r31415 won by resignation"]

1. e4 {[%clk 0:03:00.9]} 1... e5 {[%clk 0:02:59.7]} 2. Nf3 {[%clk 0:03:00]} 2...
Nc6 {[%clk 0:03:00]} 3. Bc4 {[%clk 0:03:00.3]} 3... Bc5 {[%clk 0:02:59.3]} 4. c3
{[%clk 0:03:00.5]} 4... Nf6 {[%clk 0:02:58.5]} 5. d3 {[%clk 0:03:01]} 5... a6
{[%clk 0:02:57.2]} 6. O-O {[%clk 0:03:00.1]} 6... Ba7 {[%clk 0:02:55.2]} 7. Nbd2
{[%clk 0:02:58.9]} 7... d6 {[%clk 0:02:55]} 8. Bb3 {[%clk 0:02:59.1]} 8... O-O
{[%clk 0:02:52.9]} 9. h3 {[%clk 0:02:58.5]} 9... Kh8 {[%clk 0:02:51.1]} 10. Re1
{[%clk 0:02:56.1]} 10... Ng8 {[%clk 0:02:49.9]} 11. Nf1 {[%clk 0:02:55.1]} 11...
f5 {[%clk 0:02:44.9]} 12. exf5 {[%clk 0:02:53.8]} 12... Bxf5 {[%clk 0:02:43.9]}
13. d4 {[%clk 0:02:54.7]} 13... exd4 {[%clk 0:02:34.8]} 14. cxd4 {[%clk
0:02:47.7]} 14... d5 {[%clk 0:02:33.8]} 15. Ng3 {[%clk 0:02:43.2]} 15... Nce7
{[%clk 0:02:22.4]} 16. Bg5 {[%clk 0:02:40.3]} 16... Qd6 {[%clk 0:02:20]} 17. Ne5
{[%clk 0:02:30.5]} 17... c5 {[%clk 0:02:11.4]} 18. Bf4 {[%clk 0:02:11.4]} 18...
Qd8 {[%clk 0:01:58.9]} 19. Nxf5 {[%clk 0:01:56]} 19... Rxf5 {[%clk 0:01:49.7]}
20. Qg4 {[%clk 0:01:54.7]} 20... Qf8 {[%clk 0:01:38.4]} 21. Be3 {[%clk
0:01:40.4]} 21... Nf6 {[%clk 0:01:20.6]} 22. Qh4 {[%clk 0:01:29.2]} 22... cxd4
{[%clk 0:01:11.5]} 23. Bxd4 {[%clk 0:01:28.9]} 23... Bxd4 {[%clk 0:01:10.9]} 24.
Qxd4 {[%clk 0:01:28.7]} 24... Nc6 {[%clk 0:01:05.2]} 25. Nxc6 {[%clk 0:01:12.9]}
25... bxc6 {[%clk 0:01:06.1]} 26. Rac1 {[%clk 0:01:12.8]} 26... Ne4 {[%clk
0:01:02.1]} 27. Re2 {[%clk 0:01:11.3]} 27... c5 {[%clk 0:00:58.2]} 28. Qe3
{[%clk 0:01:04.6]} 28... c4 {[%clk 0:00:37.9]} 29. Bc2 {[%clk 0:01:04]} 29...
Re8 {[%clk 0:00:38.5]} 30. Bxe4 {[%clk 0:00:58.4]} 30... Rxe4 {[%clk 0:00:37.7]}
31. Qd2 {[%clk 0:00:58.8]} 31... Rxe2 {[%clk 0:00:34.5]} 32. Qxe2 {[%clk
0:00:59.7]} 32... h6 {[%clk 0:00:34.1]} 33. Rc2 {[%clk 0:00:56.8]} 33... Qf6
{[%clk 0:00:33.4]} 34. Rd2 {[%clk 0:00:54.3]} 34... Kh7 {[%clk 0:00:33.2]} 35.
Qe3 {[%clk 0:00:48.8]} 35... Re5 {[%clk 0:00:31]} 36. Qd4 {[%clk 0:00:42.3]}
36... Re1+ {[%clk 0:00:26.5]} 37. Kh2 {[%clk 0:00:42.5]} 37... Qd6+ {[%clk
0:00:23.3]} 38. g3 {[%clk 0:00:41.8]} 38... Rb1 {[%clk 0:00:17.2]} 39. Kg2
{[%clk 0:00:29.7]} 39... Qe6 {[%clk 0:00:16.4]} 40. a3 {[%clk 0:00:20]} 40...
Qe1 {[%clk 0:00:15.3]} 41. Kf3 {[%clk 0:00:15.8]} 41... Qh1+ {[%clk 0:00:13.3]}
42. Kg4 {[%clk 0:00:15.4]} 42... Re1 {[%clk 0:00:12.6]} 43. Qxd5 {[%clk
0:00:13.1]} 43... Qxd5 {[%clk 0:00:11.3]} 44. Rxd5 {[%clk 0:00:12.7]} 44... Re2
{[%clk 0:00:12.2]} 45. Kf3 {[%clk 0:00:09.5]} 45... Rxb2 {[%clk 0:00:11.9]} 46.
Rc5 {[%clk 0:00:10.4]} 46... Rb3+ {[%clk 0:00:11.1]} 47. Ke4 {[%clk 0:00:09.8]}
47... Rxa3 {[%clk 0:00:12]} 48. Rxc4 {[%clk 0:00:10.2]} 48... Ra2 {[%clk
0:00:11]} 49. Ke3 {[%clk 0:00:09.7]} 49... h5 {[%clk 0:00:11.1]} 50. Rc6 {[%clk
0:00:09.6]} 50... g6 {[%clk 0:00:11]} 51. h4 {[%clk 0:00:09.8]} 51... Kh6 {[%clk
0:00:10.8]} 52. Rb6 {[%clk 0:00:08.1]} 52... a5 {[%clk 0:00:10.9]} 53. Ra6
{[%clk 0:00:08.3]} 53... Kg7 {[%clk 0:00:10.2]} 54. f3 {[%clk 0:00:08.3]} 54...
a4 {[%clk 0:00:10.2]} 55. g4 {[%clk 0:00:07.5]} 55... a3 {[%clk 0:00:09]} 56.
Kf4 {[%clk 0:00:06.5]} 56... Ra1 {[%clk 0:00:07.9]} 57. Kg5 {[%clk 0:00:06.8]}
57... hxg4 {[%clk 0:00:07.2]} 58. fxg4 {[%clk 0:00:07.7]} 58... a2 {[%clk
0:00:07.1]} 59. Rxg6+ {[%clk 0:00:08.2]} 59... Kf7 {[%clk 0:00:07.6]} 60. Ra6
{[%clk 0:00:09.1]} 60... Ke7 {[%clk 0:00:05.6]} 61. h5 {[%clk 0:00:09.6]} 61...
Kf7 {[%clk 0:00:05.5]} 62. h6 {[%clk 0:00:10]} 62... Rb1 {[%clk 0:00:03.8]} 63.
Rxa2 {[%clk 0:00:09.5]} 63... Rb5+ {[%clk 0:00:03.9]} 64. Kh4 {[%clk 0:00:09]}
64... Kg6 {[%clk 0:00:04.8]} 65. Ra6+ {[%clk 0:00:08.1]} 65... Kh7 {[%clk
0:00:04.8]} 66. g5 {[%clk 0:00:07.5]} 66... Rb1 {[%clk 0:00:05.2]} 67. Ra7+
{[%clk 0:00:06.5]} 67... Kg6 {[%clk 0:00:04]} 68. Rg7+ {[%clk 0:00:06.2]} 68...
Kf5 {[%clk 0:00:04.5]} 69. Kg3 {[%clk 0:00:03.8]} 69... Rb3+ {[%clk 0:00:02.5]}
70. Kf2 {[%clk 0:00:02.8]} 70... Rb8 {[%clk 0:00:01.2]} 71. Ke3 {[%clk
0:00:01.6]} 71... Re8+ {[%clk 0:00:01.2]} 72. Kd4 {[%clk 0:00:01.9]} 72... Kf4
{[%clk 0:00:01.6]} 73. Kc5 {[%clk 0:00:02.3]} 73... Rd8 {[%clk 0:00:02.5]} 74.
Kc6 {[%clk 0:00:02.6]} 74... Re8 {[%clk 0:00:03.4]} 75. Kd7 {[%clk 0:00:02.9]}
75... Re3 {[%clk 0:00:04.3]} 76. Rg6 {[%clk 0:00:02.1]} 76... Kg4 {[%clk
0:00:05.2]} 77. Rg7 {[%clk 0:00:01.5]} 77... Rc3 {[%clk 0:00:05.9]} 78. Ke7
{[%clk 0:00:01.8]} 78... Re3+ {[%clk 0:00:06.8]} 79. Kf8 {[%clk 0:00:02.6]}
79... Rf3+ {[%clk 0:00:07.4]} 80. Kg8 {[%clk 0:00:03.5]} 80... Re3 {[%clk
0:00:08.3]} 81. h7 {[%clk 0:00:04]} 81... Kf5 {[%clk 0:00:09.2]} 82. Kf7 {[%clk
0:00:04.7]} 82... Re5 {[%clk 0:00:09.4]} 83. h8=Q {[%clk 0:00:04.9]} 83... Rd5
{[%clk 0:00:10.3]} 84. Qh7+ {[%clk 0:00:04.7]} 84... Ke5 {[%clk 0:00:10.4]} 85.
Qh2+ {[%clk 0:00:04]} 85... Kd4 {[%clk 0:00:10.6]} 86. Qf2+ {[%clk 0:00:04]}
86... Ke4 {[%clk 0:00:10.1]} 87. Qg2+ {[%clk 0:00:04.1]} 87... Ke5 {[%clk
0:00:09.9]} 88. Qxd5+ {[%clk 0:00:05]} 88... Kxd5 {[%clk 0:00:10.1]} 89. Kf6
{[%clk 0:00:05.7]} 1-0